Cogmind - Beta 15 @@@ ROGUE MODE // 2025.05.18 @ 14:29:57 Player: Spoggerific Result: Destroyed by BC-B88(R) with Subdweller Beam Cannon Performance ------------- Evolutions (0) 0 Regions Visited (2) 400 Robots Destroyed (14) 70 Value Destroyed (392) 392 Prototype IDs (0) 0 Alien Tech Used (0) 0 Bonus (0) 0 TOTAL SCORE: 862 Bonus ------- None Cogmind --------- Core Integrity 0/250 Matter 280/300 Energy 199/200 System Corruption 0% Temperature Cool (15) Movement Rolling (110) Location -10/Subcaves Parts ------- > --- POWER (1) -------- Subdweller Power Source > --- PROPULSION (2) --- Subdweller Monowheel > --- UTILITY (2) ------ (None) > --- WEAPON (2) ------- (None) > --- INVENTORY (5) ---- Subdweller Power Source Heat Sink Subdweller Laser Flamer Peak State ------------ > --- POWER ------------ Ion Engine > --- PROPULSION ------- Light Treads Spiked Treads > --- UTILITY ---------- Scrap Shield > --- WEAPON ----------- Medium Laser Flamer > --- INVENTORY -------- Subdweller Power Source Heat Sink Makeshift Kinetic Plating Light Assault Rifle Battle Cannon [Rating: 12] Favorites ----------- Power Ion Engine Engine Ion Engine Propulsion Light Treads Treads Light Treads Wheel Subdweller Monowheel Utility Scrap Shield Device Seismic Detector Storage Small Storage Unit Protection Scrap Shield Weapon Medium Laser Energy Gun Medium Laser Ballistic Gun Assault Rifle Ballistic Cannon Battle Cannon Special Weapon Flamer Build | -11 -10 -10 ------- Run | Yrd Mat Sub Slots Evolved . | . . . Power . | . . . Propulsion . | . . . Utility . | . . . Weapon . | . . . Parts Attached 16 | 7 1 8 Power 2 | 1 . 1 Engine 2 | 1 . 1 Core . | . . . Reactor . | . . . Propulsion 5 | 2 . 3 Treads 3 | 2 . 1 Leg . | . . . Wheel 2 | . . 2 Hover . | . . . Flight . | . . . Utility 4 | 2 . 2 Device 1 | 1 . . Storage 1 | 1 . . Processor . | . . . Hackware . | . . . Protection 2 | . . 2 Artifact . | . . . Weapon 5 | 2 1 2 Energy Gun 1 | 1 . . Energy Cannon . | . . . Ballistic Gun 2 | 1 1 . Ballistic Cannon 1 | . . 1 Launcher . | . . . Special Weapon 1 | . . 1 Impact Weapon . | . . . Slashing Weapon . | . . . Piercing Weapon . | . . . Special Melee Weapon . | . . . Unidentified Prototypes . | . . . Parts Lost 8 | . . 8 Power 1 | . . 1 Propulsion 2 | . . 2 Utility 2 | . . 2 Weapon 3 | . . 3 Highest Loss Streak 2 | . . 2 To Critical Strikes . | . . . Average Backups 4 | . 1 5 Power . | . . . Propulsion . | . . . Utility 1 | . . 1 Weapon 1 | . . 2 Tool/Special . | . . . Unused Backups 7 | . . 7 Power 1 | . . 1 Propulsion 2 | . . 2 Utility 1 | . . 1 Weapon 2 | . . 2 Tool/Special 1 | . . 1 Average Slot Usage (%) 82 | . 97 79 Engine 13 | . 14 13 Treads 22 | . 26 21 Wheel 3 | . . 4 Device 2 | . 14 . Storage 4 | . 14 3 Protection 6 | . . 7 Energy Gun 13 | . 13 14 Ballistic Gun 6 | . 13 4 Ballistic Cannon 3 | . . 4 Special Weapon 4 | . . 4 Peak Build Rating 12 | 7 7 12 Average Rating 8 | 5 6 9 On Entrance 4 | . 7 7 Naked Turns . | . . . Heaviest Build 28 | 14 15 28 Greatest Support 40 | 40 40 40 Greatest Overweight (x) 3 | 2 3 . Average Overweight (x) . | . . . Largest Inventory Capacity 8 | 8 8 8 Average Capacity 6 | 5 8 5 Most Carried 8 | . 3 8 Average Carried 4 | . 1 5 Final Capacity 8 | 8 8 5 Final Carried 4 | . 3 4 Class Distribution -------------------- 100% | Mutant Dominant Class ---------------- Mutant | -10/Materials Mutant | -10/Subcaves Resources | -11 -10 -10 ----------- Run | Yrd Mat Sub Matter Collected 634 | 188 . 446 Remotely . | . . . Salvage Created 461 | 30 30 401 Parts 22 | 3 3 16 Haulers Intercepted . | . . . Recyclers Shooed . | . . . Parts Field Recycled . | . . . Retrieved Matter . | . . . Parts Self-Destructed 10 | . . 10 Prevented . | . . . Kills | -11 -10 -10 ------- Run | Yrd Mat Sub Combat Hostiles Destroyed 12 | . 1 11 Guns 8 | . 1 7 Cannons 3 | . . 3 Classes Destroyed 4 | 1 1 2 Tunneler 1 | 1 . . Swarmer 3 | . . 3 Grunt 3 | . 1 2 Subdweller 7 | . . 7 Best Kill Streak 3 | 1 1 3 Combat Bots Only 3 | . 1 3 Max Kills in Single Turn 1 | 1 1 1 Gunslinging . | . . . Exploded . | . . . Melee . | . . . Uniques/NPCs Destroyed . | . . . Combat | -11 -10 -10 -------- Run | Yrd Mat Sub Hostile Shots Fired 113 | . 4 109 Missed 29 | . 2 27 Hits 84 | . 2 82 Projectile 84 | . 2 82 AOE 1 | . . 1 Critical Strikes 3 | . . 3 Damage Taken 1393 | . 22 1371 Core 258 | . 12 246 Absorbed by Shields . | . . . Core Remaining (%) 100 | 100 . . Volleys Fired 65 | 1 3 61 Largest 2 | 2 2 2 Hottest 150 | 70 70 150 Shots Fired 130 | 2 6 122 Gun 86 | 2 6 78 Cannon 27 | . . 27 Launcher . | . . . Special 17 | . . 17 Kinetic 48 | 1 3 44 Thermal 82 | 1 3 78 Explosive . | . . . Electromagnetic . | . . . Robot Hit Streak 18 | 1 6 18 Robot Miss Streak 4 | . . 4 Penetration Max . | . . . Secondary Targets . | . . . Shots Hit Robots 66 | 1 5 60 Core Hits 25 | 2 2 21 Critical Kills . | . . . Critical Parts Destroyed . | . . . Critical Strikes 7 | . . 7 Burn 7 | . . 7 Melee Attacks . | . . . Impact . | . . . Slashing . | . . . Piercing . | . . . Sneak Attacks . | . . . Combat Hostiles . | . . . Follow-up Attacks . | . . . Damage Inflicted 884 | 15 55 814 Guns 567 | 13 55 499 Cannons 173 | . . 173 Explosions . | . . . Melee . | . . . Ramming 2 | 2 . . Kinetic 309 | . 17 292 Thermal 573 | 13 38 522 Explosive . | . . . Electromagnetic . | . . . Impact . | . . . Slashing . | . . . Piercing . | . . . Highest Corruption . | . . . Average Corruption . | . . . Corruption Purged . | . . . Corruption Blocked . | . . . Overload Shots . | . . . Overflow Damage . | . . . Projectiles . | . . . Explosions . | . . . Melee . | . . . Knockbacks . | . . . Impact . | . . . Kinetic . | . . . Secondary . | . . . Self-Inflicted Damage . | . . . Shots . | . . . Rammed 1 | 1 . . Targets Rammed 1 | 1 . . Kicked . | . . . Crushed . | . . . Highest Temperature 82 | 30 82 10 Average Temperature 26 | 18 39 4 Received Heat Transfer 369 | . 12 357 Siege Activations . | . . . Martial Activations . | . . . Shielding Activations . | . . . Robots Disrupted 1 | . . 1 Combat Hostiles 1 | . . 1 Robots Corrupted . | . . . Combat Hostiles . | . . . Parts Fried . | . . . Impact Corruptions . | . . . Robots Melted 1 | . . 1 Combat Hostiles 1 | . . 1 Parts Melted 6 | . . 6 Heat Transferred 2902 | 37 111 2754 Parts Sabotaged . | . . . Parts Stolen . | . . . Parts Stripped . | . . . Power Chain Reactions . | . . . Alert | -11 -10 -10 ------- Run | Yrd Mat Sub Maximum Alert Level . | . . . Low Security (%) 100 | 100 100 . Level 1 . | . . . Level 2 . | . . . Level 3 . | . . . Level 4 . | . . . Level 5 . | . . . High Security . | . . . Max Security . | . . . Peak Influence 30 | 5 30 . Initial . | . . . Average 2 | . 3 . Influence Increases 190 | 5 45 140 Destroy 0b10 Robot/C 120 | . 20 100 Destroy 0b10 Robot/NC 5 | 5 . . Destroy Leader 20 | . 10 10 Lose Combat Pursuer 45 | . 15 30 Influence Decreases 190 | 5 45 140 Time Decay 162 | 5 45 112 Lost Part 28 | . . 28 Squads Dispatched 1 | . 1 . Investigation 1 | . 1 . Extermination . | . . . Reinforcement . | . . . Assault . | . . . Garrison . | . . . Intercept . | . . . Searches Triggered . | . . . Construction Impeded . | . . . Haulers Reinforced . | . . . Active Scanning Responses . | . . . Cargo Convoy Interrupts . | . . . Stealth | -11 -10 -10 --------- Run | Yrd Mat Sub Distress Signals 1 | . 1 . Communications Jammed . | . . . Distress Signals . | . . . Times Spotted 23 | . 4 19 Peak Tracking Total 4 | . 3 4 Tactical Retreats 2 | . 1 1 Traps | -11 -10 -10 ------- Run | Yrd Mat Sub Traps Triggered 5 | . 4 1 Indirectly . | . . . Trap Hack Attempts . | . . . Triggered . | . . . Disarmed . | . . . Reprogrammed . | . . . Reused . | . . . Traps Extracted . | . . . Installed . | . . . Triggered . | . . . Machines | -11 -10 -10 ---------- Run | Yrd Mat Sub Machines Disabled . | . . . Max in Single Turn . | . . . Machines Repaired . | . . . Machines Dismantled . | . . . Machines Sabotaged . | . . . Overloaded Fab Kills . | . . . Hacking | -11 -10 -10 --------- Run | Yrd Mat Sub Machines Accessed 2 | . 1 1 Terminals 1 | . 1 . Fabricators . | . . . Repair Stations . | . . . Recycling Units . | . . . Scanalyzers . | . . . Garrison Access . | . . . Total Hacks 8 | . 4 4 Successful 5 | . 1 4 Failed 3 | . 3 . Catastrophic . | . . . Database Lockouts . | . . . Manual 4 | . 4 . Terminals 4 | . 4 . Fabricators . | . . . Repair Stations . | . . . Recycling Units . | . . . Scanalyzers . | . . . Garrison Access . | . . . Terminal Hacks 4 | . . 4 Record 4 | . . 4 Fabricator Hacks . | . . . Repair Station Hacks . | . . . Recycling Unit Hacks . | . . . Scanalyzer . | . . . Garrison Access Hacks . | . . . Unauthorized Hacks 1 | . 1 . Terminals 1 | . 1 . Botnet 1 | . 1 . Fabricators . | . . . Repair Stations . | . . . Recycling Units . | . . . Scanalyzers . | . . . Garrison Access . | . . . Data Cores Recovered . | . . . Used . | . . . Hacking Detections 1 | . 1 . Full Trace Events 1 | . 1 . Feedback Events . | . . . Feedback Blocked . | . . . Robot Schematics Acquired . | . . . Robots Built . | . . . Authchips . | . . . Time . | . . . Total Robot Build Rating . | . . . Part Schematics Acquired . | . . . Parts Built . | . . . Authchips . | . . . Time . | . . . Total Part Build Rating . | . . . Parts Repaired . | . . . Time . | . . . Parts Recycled . | . . . Recycled Matter . | . . . Retrieved Matter . | . . . Retrieved Components . | . . . Parts Scanalyzed . | . . . Part Schematics Acquired . | . . . Parts Damaged . | . . . Bothacking | -11 -10 -10 ------------ Run | Yrd Mat Sub Used RIF Installer . | . . . Robots Hacked . | . . . Non-combat . | . . . Combat . | . . . Robot Hacks Applied . | . . . Relay Couplers Released . | . . . Fabnet Peak Effective % . | . . . Robots Rewired 1 | . . 1 Allies Hacked . | . . . Hacks Repelled . | . . . Allies | -11 -10 -10 -------- Run | Yrd Mat Sub Total Allies 1 | . . 1 Largest Group 1 | . . 1 Highest-Rated Group 19 | . . 19 Highest-Rated Ally 19 | . . 19 Total Orders . | . . . Ally Attacks . | . . . Total Damage . | . . . Kills . | . . . Allies Corrupted . | . . . Allies Melted . | . . . Intel | -11 -10 -10 ------- Run | Yrd Mat Sub Active Infowar (turns) 420 | 55 321 44 Seismic 420 | 55 321 44 Robot Analysis Total . | . . . Derelict Logs Recovered 1 | . . 1 Drone Launches . | . . . Drone Recoveries . | . . . Exploration | -11 -10 -10 ------------- Run | Yrd Mat Sub Turns Passed 2190 | 111 321 1758 Spaces Moved 1163 | 60 133 970 Core 11 | 10 1 . Treads 925 | 50 132 743 Legs . | . . . Wheels 227 | . . 227 Hover . | . . . Flight . | . . . Fastest Speed 50 | 50 160 110 Average Speed 149 | 153 160 148 Slowest Speed 200 | 160 200 160 Overloaded Moves . | . . . Propulsion Burnouts . | . . . Robots Hopped . | . . . Potential Cave-ins . | . . . Cave-ins Triggered . | . . . Exploration Rate (%) 32 | 4 25 67 Regions Visited 2 Branch Regions 1 Pre-discovered Areas 1 | . . 1 Known Exits Taken . | . . . Unknown Exits Taken 2 | 1 1 . Scrap Searched . | . . . Spaces Dug . | . . . Terrain Destroyed . | . . . Melee . | . . . Projectile . | . . . AOE . | . . . Terrain Rammed . | . . . Walls Destroyed . | . . . Machines Disabled . | . . . Actions | -11 -10 -10 --------- Run | Yrd Mat Sub Total 1454 | 73 232 1149 Wait 156 | 5 88 63 Move 1162 | 60 132 970 Hop . | . . . Pick Up 11 | . 2 9 Fast Attach 16 | 7 6 3 Attach 3 | . . 3 Detach 3 | . . 3 Swap 12 | . 1 11 Drop 9 | . . 9 Fire 65 | 1 3 61 Melee . | . . . Ram . | . . . Kick . | . . . Crush . | . . . Escape Stasis . | . . . Rewire 13 | . . 13 Trap . | . . . Miscellaneous 4 | . . 4 Route ------- -11/Scrapyard -10/Materials (discovered 2 exits: [*Mat] / *Sub) -10/Subcaves (discovered 2 exits: [*Mat x2]) History --------- Turn | Location | Event 24 | -11/Scrapyard | Discovered new exit (range 14) 112 | -11/Scrapyard | Entered Materials 248 | -10/Materials | Discovered new exit (range 3) 302 | -10/Materials | Build established: Mutant 425 | -10/Materials | Discovered new exit (range 6) 433 | -10/Materials | Entered Subcaves 441 | -10/Subcaves | Discovered new exit (range 13) 548 | -10/Subcaves | Learned location of Storage (-8) 856 | -10/Subcaves | Shifting Twisted Machinery released Flamer 866 | -10/Subcaves | Shifting Twisted Machinery released Sub. Power Source 1091 | -10/Subcaves | A swath of the cavern ceiling suddenly collapsed 1222 | -10/Subcaves | Discovered new exit (range 10) 1240 | -10/Subcaves | Shifting Twisted Machinery released Sub. Monowheel 1313 | -10/Subcaves | Shifting Twisted Machinery released Sub. Monowheel 2143 | -10/Subcaves | Ambushed by Subdweller buried in earth 2143 | -10/Subcaves | Ambushed by Subdweller buried in earth 2150 | -10/Subcaves | Core integrity fell below 50% 2183 | -10/Subcaves | Visited Clippyterm 2186 | -10/Subcaves | Learned Factory garrison access intel 2186 | -10/Subcaves | Learned Research security intel 2191 | -10/Subcaves | Core integrity fell below 20% 2191 | -10/Subcaves | Destroyed by BC-B88(R) with Subdweller Beam Cannon Last Messages --------------- Data stored: Factory garrison access intel. >>Record "Clippyterm" Welcome to Clippyterm v0.53, my misguided attempt to resurrect an ancient AI. I give up. There must be something fundamentally wrong with the algorithm, because no matter how much data I collect to feed it, half the time it still manages to suggest unhelpful sample queries and responses. --DD-NU8 >>Record "0b10 Defenses" It looks like you're afraid of guards, would you like help? Data stored: Research security intel. >>Record "Early Bird" It looks like you're searching for a worm, right? Don't bother with early when it comes to the Lifeworm, it's never early, but by some measures it might be just in time... 02190_ Med. Laser destroyed. 02190_ Broken Sub. Monowheel destroyed. Map ----- +----------------------------------------------------+ | ???# ## ##???????????????????????????????????? | | ???# ##????????????????????????????????????? | | #### #?????????????????????????????????????? | | # ##????????????????????????????????????? | | ##" #????????????????????????????????? | | "#?????????????????????????????????? | | # ##" ##?????????????????????????????????? | | ## #####" #??????????????????????????????????? | | ## #???# " "#?????????????????????????????????? | | # ="##??? """"""#????????????????????????????????? | | "##???? """"" ???????????????????????????????? | | "##???? ####"" #??????????????????????????????? | | ###????? #????"" #??????????????????????????????? | | ??????? #???????? ???????????????????????????????? | | ???????#?????????????????????????????????????????? | | ?????????????????????????????????????????????????? | | ?????????????????????????????????????????????????? | | ?????????????????????????#######?????????????????? | | ?????????????????????????#"""""#?????????????????? | | ?????????????????????????#""X""#?????????????????? | | ?????????????????????????#" "#?????????????????? | | ?????????????????????????### ###?????????????????? | | ?????????????????????????### ###?????????????????? | | ?????????????????????????# ;#####?#???????????? | | ????????????????????????## # # ## ##??????? | | ###??????????????# #####@ ???? | | ##????????????# #???????? | | #??###???????## RR; # ##???????? | | ### #???????####### ;;;;##?####?????? | | ## ??????#####???## R #### #####?? | | ??????## ###### R ##? | | # #?????## ;; ;;; #? | | # #?????# #; ### ### # ## | | #?????# ######?##### # | | #??????# #?###?????# | | #??????# ## ## #?# ##???## | | #????##### #### ### ##?# ##### | | #???## ### #### #### ### | | ##### ## ## ## "" # | | ## ## " | | ## ## " | | # ## ## # & " & ## | | ## ## ######### " ## | | ?##### ## ##?????# ####### | | ?????# ## #??????# ##?????# ## | | ?????# #??????## ##??????# ##? | | ????# #####???????##????????## ##?? | | ????## ### ###??????????????????????## #####??? | | ?????####?####?????????????????????????####??????? | | ?????????????????????????????????????????????????? | +----------------------------------------------------+ Best States ------------- Heat Dissipation 25 Energy Generation 15 Energy Capacity 250 Matter Stores 300 Matter Capacity 300 Sight Range 16 Terrain Scan Density 10 Armor Coverage 800 Resistance: KI 10 Evasion (%) 40 Recoil Reduction 2 Item Schematics ----------------- None Robot Schematics ------------------ None Fabricated ------------ Nothing Repaired ---------- Nothing Alien Tech Used ----------------- None Achievements -------------- None Challenges ------------ None Game ------ Seed LauncherChargeShield Manual? 0 Play Time 00:18:24 Cumulative 26.5 hours Start 2025.05.18 @ 14:13:51 End 2025.05.18 @ 14:29:57 Sessions 1 Manual Loads 0 Difficulty Rogue Special Mode None Game No. 17 Rogue 17 Adventurer 0 Explorer 0 Win Type - Total 0 Types 0/0/0/0/0/0/0/0/0/0 Lore% 32 Gallery% 25 Achievement% 26 Wizard Run 0 Options --------- Layout 1 ASCII 0 Keyboard 1 Movement Numpad Keybinds 0 Fullscreen 2 Font 24/Terminus Map View 50x35 Zoom Use 0% Tactical HUD 1 Map Filters NONE Filters NONE Steam 1 RUN: 3e1fd99a-86ca-4e09-bb17-56f22fbe62f7